bitfinex/quotes_SOLUSD_20240813
["timestamp","ask_amount","ask_price","bid_price","bid_amount"]
[1723578420285,0.38572304,146.77,146.69,20.0]
[1723578420492,6.4441,146.78,146.69,20.0]
[1723578421097,6.4441,146.78,146.7,22.0]
[1723578421270,6.4441,146.78,146.71,20.0]
[1723578422396,45.0,146.77,146.71,20.0]
[1723578423397,6.4441,146.78,146.71,20.0]
[1723578423778,16.8139781,146.79,146.71,20.0]
[1723578423983,16.8139781,146.79,146.72,22.12549]
[1723578424306,0.8368781,146.79,146.73,20.25098]
[1723578424472,0.8368781,146.79,146.76,22.0]
[1723578424677,0.8368781,146.79,146.74,22.0]
[1723578424977,0.8368781,146.79,146.75,20.0]
[1723578425692,0.8368781,146.79,146.73,20.25098]
[1723578425874,0.8368781,146.79,146.74,0.12549]
[1723578426803,0.8368781,146.79,146.74,20.25098]
[1723578427002,0.8368781,146.79,146.75,65.25098]
[1723578427294,0.8368781,146.79,146.76,0.12549]
[1723578427504,0.8368781,146.79,146.75,20.25098]
[1723578428208,0.8368781,146.79,146.76,0.12549]
[1723578428579,0.8368781,146.79,146.78,22.0]
[1723578428778,0.8368781,146.79,146.78,42.37647]
[1723578429291,0.8368781,146.79,146.78,42.50196]
[1723578430091,0.8368781,146.79,146.78,84.99446]
[1723578430292,0.8368781,146.79,146.78,131.35466049]
[1723578430492,0.8368781,146.79,146.78,129.99446]
[1723578433818,15.3214,146.88,146.8,20.12549]
[1723578434128,6.3707,146.91,146.81,42.37647]
[1723578434329,6.3707,146.91,146.81,62.37647]
[1723578434486,6.3707,146.91,146.81,42.37647]
[1723578435889,7.6430781,146.93,146.81,42.37647]
[1723578435890,0.8368781,146.93,146.84,15.40619]
[1723578436235,0.8368781,146.93,146.85,42.37647]
[1723578436591,0.8368781,146.93,146.85,20.37647]
[1723578437000,0.8368781,146.93,146.86,45.12549]
[1723578437210,0.8368781,146.93,146.87,20.37647]
[1723578437623,0.8368781,146.93,146.85,30.0]
[1723578437829,0.8368781,146.93,146.82,6.4184]
[1723578438037,0.8368781,146.93,146.83,20.12549]
[1723578438334,45.8368781,146.93,146.83,20.0]
[1723578438706,29.44350304,146.92,146.83,20.0]
[1723578438899,0.12549,146.9,146.82,20.0]
[1723578439099,45.0,146.91,146.82,20.0]
[1723578440037,16.2865,146.89,146.82,20.0]
[1723578440401,0.38572304,146.88,146.82,20.0]
[1723578440601,45.38572304,146.88,146.8,20.0]
[1723578441019,0.12549,146.87,146.78,16.5303]
[1723578441267,6.93429,146.87,146.76,20.0]
[1723578441419,45.0,146.86,146.76,20.0]
[1723578441622,0.12549,146.87,146.76,20.0]
[1723578442341,51.4289,146.88,146.78,20.0]
[1723578442546,6.4289,146.88,146.79,42.0]
[1723578442707,6.4289,146.88,146.8,20.37647]
[1723578442907,6.4289,146.88,146.81,20.0]
[1723578443102,6.4289,146.88,146.82,0.12549]
[1723578444118,6.4289,146.88,146.81,20.0]
[1723578444304,6.4289,146.88,146.8,20.25098]
[1723578444506,6.4289,146.88,146.8,20.0]
[1723578444507,0.12549,146.87,146.8,20.0]
[1723578444726,45.12549,146.87,146.78,20.0]
[1723578444948,45.0,146.86,146.78,20.0]
[1723578445111,28.4289,146.88,146.78,20.0]
[1723578445308,6.4289,146.88,146.79,0.25098]
[1723578445503,45.0,146.87,146.79,0.25098]
[1723578445807,0.12549,146.86,146.78,20.0]
[1723578446031,22.51121304,146.86,146.76,20.0]
[1723578446240,45.0,146.85,146.76,20.0]
[1723578446935,0.12549,146.87,146.76,60.0]
[1723578447122,45.12549,146.87,146.76,60.0]
[1723578447324,45.12549,146.87,146.76,40.0]
[1723578447539,45.12549,146.87,146.77,0.37647]
[1723578447835,45.12549,146.87,146.77,0.25098]
[1723578448038,0.12549,146.85,146.76,20.0]
[1723578448344,45.88768304,146.85,146.75,20.0]
[1723578448505,45.12549,146.85,146.75,20.0]
[1723578449328,45.12549,146.85,146.76,0.12549]
[1723578449515,45.12549,146.85,146.75,20.0]
[1723578449924,6.8109,146.83,146.71,7.83412011]
[1723578450107,0.12549,146.78,146.67,21.5533]
[1723578450308,0.12549,146.76,146.67,21.5533]
[1723578450508,0.51121304,146.76,146.67,15.524]
[1723578450816,45.51121304,146.76,146.67,15.524]
[1723578451276,22.2751,146.77,146.67,55.524]
[1723578451846,22.2751,146.77,146.67,15.524]
[1723578452010,22.2751,146.77,146.67,35.524]
[1723578452339,22.2751,146.77,146.68,0.37647]
[1723578452925,45.38572304,146.76,146.68,20.0]
[1723578453508,45.38572304,146.76,146.67,20.0]
[1723578453708,45.0,146.76,146.67,20.0]
[1723578454254,45.0,146.76,146.68,0.12549]
[1723578454611,45.38572304,146.76,146.68,0.12549]
[1723578454812,0.12549,146.75,146.67,20.0]
[1723578455041,45.0,146.76,146.67,20.0]
[1723578455827,22.2751,146.77,146.68,22.0]
[1723578456027,22.2751,146.77,146.69,20.0]
[1723578456752,22.2751,146.77,146.7,23.73889125]
[1723578456957,22.1137,146.82,146.72,42.0]
[1723578457170,22.1137,146.82,146.73,20.37647]
[1723578459463,45.0,146.81,146.73,20.37647]
[1723578460521,22.1137,146.82,146.74,0.98224903]
[1723578460721,22.6676,146.86,146.75,0.37647]
[1723578461040,22.6676,146.86,146.77,20.0]
[1723578461347,22.6676,146.86,146.78,20.12549]
[1723578461722,22.6676,146.86,146.78,0.12549]
[1723578461923,22.6676,146.86,146.78,0.37647]
[1723578462321,22.6676,146.9,146.78,67.37647]
[1723578462517,22.6676,146.9,146.79,20.0]
[1723578462721,22.6676,146.9,146.8,0.12549]
[1723578462942,29.475,146.9,146.8,0.12549]
[1723578463134,29.475,146.9,146.79,20.0]
[1723578463135,28.8088,146.87,146.79,20.0]
[1723578463317,0.38572304,146.86,146.76,20.0]
[1723578463541,22.0,146.87,146.77,50.37647]
[1723578464130,0.38572304,146.86,146.77,50.37647]
[1723578464436,45.38572304,146.86,146.77,50.37647]
[1723578464643,0.51121304,146.85,146.77,50.25098]
[1723578464937,45.0,146.86,146.77,50.12549]
[1723578465530,22.0,146.89,146.78,22.25098]
[1723578465725,22.6676,146.9,146.8,22.12549]
[1723578465953,22.6676,146.9,146.81,40.37647]
[1723578466545,22.6676,146.9,146.81,20.37647]
[1723578466737,22.6676,146.9,146.81,50.37647]
[1723578467724,45.0,146.89,146.81,50.37647]
[1723578467921,45.0,146.89,146.81,50.12549]
[1723578468152,6.8087,146.87,146.81,30.0]
[1723578468457,45.0,146.86,146.81,30.0]
[1723578468760,45.0,146.87,146.81,30.0]
[1723578468928,45.12549,146.88,146.81,30.0]
[1723578469127,22.6676,146.9,146.78,40.0]
[1723578469440,22.6676,146.9,146.8,35.7617]
[1723578469937,22.6676,146.9,146.8,15.7617]
[1723578470437,22.6676,146.9,146.81,20.0]
[1723578470438,0.12549,146.89,146.81,20.0]
[1723578470754,45.12549,146.89,146.81,20.0]
[1723578470951,45.0,146.89,146.81,20.0]
[1723578471255,0.8368781,146.93,146.82,65.12549]
[1723578471461,20.8368781,146.93,146.83,20.25098]
[1723578471661,20.8368781,146.93,146.83,20.0]
[1723578471662,27.6427781,146.93,146.83,20.0]
[1723578472042,27.6427781,146.93,146.82,20.25098]
[1723578472242,20.8368781,146.93,146.83,0.12549]
[1723578472447,6.8064,146.92,146.82,20.25098]
[1723578472656,27.7683681,146.93,146.82,20.0]
[1723578472965,20.8368781,146.93,146.82,20.0]
[1723578473134,20.8368781,146.93,146.83,0.12549]
[1723578473560,20.8368781,146.93,146.82,20.0]
[1723578473561,0.12549,146.92,146.82,20.0]
[1723578473764,0.25098,146.92,146.81,20.0]
[1723578473971,45.12549,146.92,146.82,0.12549]
[1723578474137,45.0,146.92,146.82,0.12549]
[1723578474864,45.0,146.92,146.81,20.0]
[1723578475670,0.8368781,146.93,146.83,20.0]
[1723578475970,0.8368781,146.93,146.83,47.29]
[1723578476132,0.8368781,146.93,146.84,20.25098]
[1723578476586,0.8368781,146.93,146.84,20.0]
[1723578476939,28.1268781,146.93,146.84,20.0]
[1723578477177,6.93289,146.9,146.8,15.7617]
[1723578477343,45.0,146.89,146.81,20.0]
[1723578477542,51.93289,146.9,146.81,20.0]
[1723578477855,45.12549,146.9,146.81,20.0]
[1723578478158,28.1268781,146.93,146.81,20.0]
[1723578478363,20.0,146.92,146.82,27.29]
[1723578478965,20.8368781,146.93,146.83,0.37647]
[1723578479167,20.8368781,146.93,146.83,20.37647]
[1723578479536,0.8368781,146.93,146.85,21.7323]
[1723578479846,0.8368781,146.93,146.86,20.37647]
[1723578480064,0.8368781,146.93,146.86,50.37647]
[1723578482479,0.8368781,146.93,146.87,20.0]
[1723578482682,0.8368781,146.93,146.88,20.12549]
[1723578483341,0.8368781,146.93,146.89,20.0]
[1723578483554,0.8368781,146.93,146.87,20.0]
[1723578484069,0.12549,146.92,146.81,21.8948]
[1723578484279,79.59836,146.92,146.82,30.0]
[1723578484437,72.79196,146.92,146.82,30.0]
[1723578484779,79.20656,146.92,146.82,30.0]
[1723578484989,0.12549,146.9,146.82,30.0]
[1723578485136,73.05219304,146.9,146.82,30.0]
[1723578485790,27.29,146.88,146.82,30.0]
[1723578485952,45.51121304,146.87,146.77,6.125]
[1723578486137,27.29,146.86,146.74,70.0767]
[1723578486347,27.29,146.86,146.74,22.7867]
[1723578486348,51.53982304,146.85,146.74,22.7867]
[1723578486555,0.12549,146.84,146.74,22.7867]
[1723578487066,0.12549,146.84,146.75,30.0]
[1723578487770,0.12549,146.84,146.76,20.12549]
[1723578487972,0.12549,146.84,146.75,30.0]
[1723578488165,0.25098,146.84,146.75,30.0]
[1723578488859,15.8715,146.91,146.78,27.29]
[1723578489061,15.8715,146.91,146.79,30.0]
[1723578489256,15.8715,146.91,146.8,20.0]
[1723578489980,15.8715,146.91,146.81,0.37647]
[1723578490475,15.8715,146.91,146.8,20.0]
[1723578491054,45.37647,146.9,146.8,20.0]
[1723578491280,79.47387,146.9,146.8,20.0]
[1723578491461,0.12549,146.86,146.8,20.0]
[1723578491862,45.12549,146.86,146.76,20.0]
[1723578492084,6.3443,146.87,146.78,67.29]
[1723578492282,28.1268781,146.93,146.78,67.29]
[1723578492283,22.2158,146.91,146.79,20.0]
[1723578492461,45.38572304,146.9,146.79,20.0]
[1723578492665,0.12549,146.89,146.79,20.0]
[1723578493064,0.12549,146.89,146.8,30.0]
[1723578493264,0.12549,146.89,146.81,20.0]
[1723578493265,0.25098,146.89,146.81,20.0]
[1723578493667,0.12549,146.86,146.74,42.7867]
[1723578493871,45.50196,146.86,146.74,22.7867]
[1723578494084,6.3648,146.84,146.76,30.0]
[1723578494268,45.0,146.83,146.76,30.0]
[1723578494473,0.38572304,146.82,146.76,30.0]
[1723578494791,45.0,146.83,146.73,7.11873089]
[1723578494963,6.3648,146.84,146.74,67.29]
[1723578495165,0.12549,146.83,146.74,47.29]
[1723578495489,6.3648,146.84,146.74,47.29]
[1723578495657,45.0,146.83,146.75,0.12549]
[1723578495862,0.38572304,146.82,146.74,20.0]
[1723578496797,0.12549,146.82,146.74,20.0]
[1723578496960,60.6146,146.83,146.74,47.29]
[1723578497164,6.5248,146.88,146.8,27.29]
[1723578497394,6.5248,146.88,146.81,20.44874146]
[1723578497623,6.5248,146.88,146.81,20.0]
[1723578497763,6.5248,146.88,146.82,0.4489339]
[1723578497963,6.5248,146.88,146.81,20.0]
[1723578498186,15.6146,146.89,146.82,0.37647]
[1723578500501,15.6146,146.89,146.78,42.9239]
[1723578500704,15.6146,146.89,146.8,30.0]
[1723578500705,45.50196,146.88,146.8,30.0]
[1723578500870,45.12549,146.88,146.8,30.0]
[1723578501676,45.12549,146.88,146.81,20.0]
[1723578502399,45.12549,146.88,146.79,20.0]
[1723578502920,45.0,146.88,146.79,20.0]
[1723578503087,15.6146,146.89,146.8,47.66647]
[1723578503288,15.6146,146.89,146.82,47.29]
[1723578503574,22.6277,146.92,146.83,20.12549]
[1723578503984,22.6277,146.92,146.84,0.3578685]
[1723578504184,22.6277,146.92,146.83,20.12549]
[1723578504399,22.6277,146.92,146.83,20.0]
[1723578504621,22.6277,146.92,146.84,30.0]
[1723578504908,45.0,146.91,146.85,20.0]
[1723578505214,0.12549,146.9,146.85,20.0]
[1723578505684,0.12549,146.9,146.8,20.0]
[1723578506015,0.12549,146.9,146.81,0.12549]
[1723578506577,0.50196,146.9,146.8,20.0]
[1723578506787,0.50196,146.9,146.79,20.25098]
[1723578506989,0.50196,146.9,146.8,30.12549]
[1723578508407,0.50196,146.9,146.8,30.0]
[1723578508578,0.50196,146.9,146.81,20.0]
[1723578509108,0.25098,146.9,146.79,67.41549]
[1723578509313,0.12549,146.9,146.82,0.12549]
[1723578509477,22.6277,146.92,146.82,0.12549]
[1723578509680,22.6277,146.92,146.82,0.25098]
[1723578510501,29.82012304,146.92,146.81,20.0]
[1723578510799,45.50196,146.91,146.81,20.0]
[1723578513308,45.50196,146.91,146.8,20.0]
[1723578513477,52.30886,146.91,146.8,20.0]
[1723578513682,34.0974,146.9,146.8,21.28755399]
[1723578513901,45.50196,146.89,146.8,1.28755399]
[1723578514101,45.0,146.89,146.8,27.29]
[1723578514285,22.6277,146.92,146.82,27.29]
[1723578514501,22.6277,146.92,146.83,21.28696479]
[1723578514816,22.6277,146.92,146.83,20.0]
[1723578515826,0.12549,146.91,146.83,20.0]
[1723578516315,45.12549,146.91,146.83,20.0]
[1723578518126,45.0,146.91,146.83,20.0]
[1723578518306,16.1029,146.92,146.84,1.53326082]
[1723578518623,0.8368781,146.93,146.84,1.53326082]
[1723578518823,0.8368781,146.93,146.84,0.37647]
[1723578519197,0.8368781,146.93,146.83,40.0]
[1723578519419,0.8368781,146.93,146.84,30.37647]
[1723578519616,0.8368781,146.93,146.85,20.0]
[1723578520030,0.38572304,146.92,146.85,20.0]
[1723578520327,45.38572304,146.92,146.85,20.0]
[1723578520496,45.0,146.92,146.85,20.0]
[1723578520821,0.12549,146.92,146.85,20.0]
[1723578521003,0.50196,146.92,146.85,20.0]
[1723578521419,0.12549,146.92,146.85,20.0]
[1723578521619,45.8368781,146.93,146.84,20.0]
[1723578521810,0.8368781,146.93,146.84,20.0]
[1723578522015,0.8368781,146.93,146.83,0.25098]
[1723578522321,0.8368781,146.93,146.84,0.37647]
[1723578522529,0.8368781,146.93,146.83,50.0]
[1723578522530,0.12549,146.92,146.83,50.0]
[1723578522705,0.37647,146.92,146.83,50.0]
[1723578523128,0.25098,146.92,146.83,20.0]
[1723578523299,0.12549,146.92,146.82,20.0]
[1723578523508,0.12549,146.92,146.83,0.12549]
[1723578523703,0.12549,146.92,146.83,0.25098]
[1723578523899,0.12549,146.92,146.82,30.12549]
[1723578524126,0.50196,146.92,146.83,20.0]
[1723578528215,0.12549,146.9,146.83,20.0]
[1723578528502,45.50196,146.9,146.83,20.0]
[1723578529513,45.50196,146.9,146.8,20.0]
[1723578530009,0.12549,146.88,146.8,20.0]
[1723578530206,45.37647,146.88,146.8,1.36146292]
[1723578530407,45.50196,146.88,146.8,1.36146292]
[1723578531334,45.12549,146.88,146.78,22.6408336]
[1723578531524,45.12549,146.88,146.79,51.83]
[1723578531732,45.12549,146.88,146.8,21.36202465]
[1723578531936,45.0,146.88,146.8,20.0]
[1723578532233,6.5192,146.89,146.81,0.12549]
[1723578532430,6.5192,146.89,146.81,30.12549]
[1723578532608,6.5192,146.89,146.82,20.0]
[1723578535113,16.2862,146.91,146.83,21.83]
[1723578535318,6.9846781,146.93,146.85,41.83]
[1723578535646,6.9846781,146.93,146.86,20.37647]
[1723578535813,6.9846781,146.93,146.86,20.12549]
[1723578536137,6.9846781,146.93,146.86,20.0]
[1723578536342,6.9846781,146.93,146.85,20.0]
[1723578536714,6.9846781,146.93,146.86,0.37647]
[1723578536927,6.9846781,146.93,146.86,30.37647]
[1723578537132,6.9846781,146.93,146.87,20.0]
[1723578537941,6.9846781,146.93,146.87,50.0]
[1723578538640,0.12549,146.92,146.87,20.0]
[1723578538814,45.12549,146.92,146.85,20.0]
[1723578539016,45.0,146.92,146.86,30.0]
[1723578539218,45.0,146.92,146.87,20.0]
[1723578539416,6.9846781,146.93,146.87,20.0]
[1723578539731,45.0,146.92,146.87,20.0]
[1723578540914,45.0,146.92,146.86,30.0]
[1723578540915,0.12549,146.91,146.86,30.0]
[1723578541115,0.25098,146.91,146.81,21.83]
[1723578541315,0.37647,146.91,146.82,30.0]
[1723578542213,0.12549,146.91,146.83,20.0]
[1723578543150,45.0,146.92,146.84,0.12549]
[1723578543323,45.0,146.92,146.84,30.12549]
[1723578543650,45.0,146.92,146.85,20.0]
[1723578543824,6.9846781,146.93,146.85,20.0]
[1723578544024,6.9846781,146.93,146.86,0.12549]
[1723578544224,6.9846781,146.93,146.86,0.37647]
[1723578544422,6.9846781,146.93,146.85,41.83]
[1723578544636,6.9846781,146.93,146.85,20.0]
[1723578545020,6.9846781,146.93,146.86,0.25098]
[1723578545220,0.8368781,146.93,146.86,0.25098]
[1723578545830,0.8368781,146.93,146.86,30.25098]
[1723578546032,0.8368781,146.93,146.87,20.0]
[1723578547261,0.8368781,146.93,146.87,50.0]
[1723578548640,0.8368781,146.93,146.88,0.12549]
[1723578548838,0.8368781,146.93,146.88,30.0]
[1723578549150,0.8368781,146.93,146.89,20.0]
[1723578550178,0.8368781,146.93,146.84,20.0]
[1723578550362,0.8368781,146.93,146.85,30.0]
[1723578550542,0.8368781,146.93,146.86,20.0]
[1723578551562,0.8368781,146.93,146.87,30.0]
[1723578551737,0.8368781,146.93,146.88,20.0]
[1723578552847,0.8368781,146.93,146.89,30.0]
[1723578553050,0.8368781,146.93,146.9,20.0]
[1723578554558,0.8368781,146.93,146.87,20.0]
[1723578554882,0.8368781,146.93,146.88,30.0]
[1723578555082,15.6116,146.99,146.89,42.20647]
[1723578555083,7.10498054,146.99,146.89,42.20647]
[1723578555789,7.10498054,146.99,146.9,30.0]
[1723578555963,7.10498054,146.99,146.91,20.0]
[1723578556365,45.0,146.98,146.91,20.0]
[1723578556770,45.0,146.98,146.91,50.0]
[1723578556771,0.12549,146.97,146.91,50.0]
[1723578557177,22.20647,146.97,146.91,20.0]
[1723578557386,0.12549,146.95,146.87,20.0]
[1723578557790,0.12549,146.95,146.88,30.0]
[1723578558091,45.0,146.96,146.89,20.0]
[1723578560388,0.12549,146.98,146.9,31.36123616]
[1723578560590,45.12549,146.98,146.91,20.0]
[1723578561379,13.68808054,146.99,146.91,20.0]
[1723578561704,267.1013,147.04,146.91,71.83]
[1723578561705,6.6252,147.02,146.91,71.83]
[1723578562471,6.6252,147.02,146.92,16.2706]
[1723578562676,6.6252,147.02,146.93,20.0]
[1723578563378,0.12549,147.01,146.93,20.0]
[1723578563784,0.12549,147.01,146.93,50.0]
[1723578563972,0.51121304,147.01,146.93,50.0]
[1723578564175,0.12549,147.01,146.93,50.0]
[1723578564680,45.37647,147.01,146.93,50.0]
[1723578565396,45.25098,147.01,146.93,50.0]
[1723578565579,45.12549,147.01,146.93,50.0]
[1723578565893,45.12549,147.01,146.93,20.0]
[1723578566194,0.12549,147.02,146.93,20.0]
[1723578567316,67.20647,147.02,146.93,20.0]
[1723578567674,0.12549,147.01,146.93,20.0]
[1723578567878,21.95549,147.0,146.93,20.0]
[1723578568093,0.12549,146.98,146.93,20.0]
[1723578569188,45.0,146.99,146.93,20.0]
[1723578571008,15.1965,147.03,146.93,20.0]
[1723578571381,15.58222304,147.03,146.93,20.0]
[1723578572211,0.12549,147.02,146.93,20.0]
[1723578572382,45.12549,147.02,146.93,20.0]
[1723578572727,0.38572304,147.01,146.93,20.0]
[1723578573090,45.12549,147.02,146.93,20.0]
[1723578574021,66.95549,147.02,146.93,20.0]
[1723578574311,0.12549,147.0,146.93,20.0]
[1723578574518,0.51121304,147.0,146.93,20.0]
[1723578574878,0.12549,147.0,146.93,20.0]
[1723578575307,0.12549,147.01,146.93,20.0]
[1723578575882,0.12549,147.02,146.93,20.0]
[1723578577380,45.12549,147.02,146.93,20.0]
[1723578578379,45.0779,147.07,146.93,41.83]
[1723578578590,0.25098,147.05,146.94,1.36060253]
[1723578578896,7.18612304,147.05,146.93,41.83]
[1723578579607,13.72662304,147.06,146.93,41.83]
[1723578579799,13.72662304,147.06,146.93,61.83]
[1723578579999,0.25098,147.05,146.93,61.83]
[1723578580223,7.05158,147.05,146.93,41.83]
[1723578580512,22.08098,147.05,146.94,1.35890182]
[1723578580695,0.12549,147.03,146.93,49.66295735]
[1723578581094,0.12549,147.03,146.93,69.66295735]
[1723578582306,45.0,147.04,146.94,6.4797]
[1723578582507,0.38572304,147.03,146.95,20.0]
[1723578583708,45.12549,147.05,146.95,20.0]
[1723578584213,0.12549,147.03,146.95,20.0]
[1723578585908,45.12549,147.03,146.95,20.0]
[1723578586497,21.83,147.02,146.95,20.0]
[1723578586708,45.12549,147.01,146.95,20.0]
[1723578587321,45.12549,147.01,146.94,6.4797]
[1723578590789,45.0,147.0,146.94,6.4797]
[1723578591015,66.95549,147.02,146.94,6.4797]
[1723578591198,0.12549,147.0,146.94,6.4797]
[1723578592434,0.12549,147.01,146.94,6.4797]
[1723578593132,0.50196,147.01,146.94,6.4797]
[1723578595031,0.25098,147.01,146.94,6.4797]
[1723578595227,45.0,147.02,146.94,6.4797]
[1723578595429,45.12549,147.03,146.94,6.4797]
[1723578595630,21.83,147.04,146.95,20.0]
[1723578595810,0.12549,147.03,146.95,20.0]
[1723578596006,8.84549,147.03,146.95,20.0]
[1723578596524,8.72,147.03,146.95,20.0]
[1723578596912,0.12549,147.05,146.95,28.72]
[1723578597129,0.37647,147.05,146.95,28.72]
[1723578597323,27.51893211,147.06,146.95,28.72]
[1723578597324,8.72,147.06,146.95,30.08026099]
[1723578597639,8.72,147.04,146.95,20.0]
[1723578597837,7.18602304,147.06,146.95,20.0]
[1723578598037,34.04803211,147.06,146.95,20.0]
[1723578598408,34.04803211,147.06,146.96,16.2999]
[1723578599330,45.12549,147.05,146.96,16.2999]
[1723578600309,0.12549,147.01,146.96,46.2999]
[1723578600622,0.12549,147.01,146.96,30.0]
[1723578600623,21.79,147.0,146.96,30.0]
[1723578600812,45.0,146.99,146.96,30.0]
[1723578601228,0.12549,146.98,146.96,30.0]
[1723578601423,45.0,146.99,146.96,30.0]
[1723578601728,45.0,146.99,146.92,16.2999]
[1723578602616,45.0,146.99,146.93,30.0]
[1723578603014,6.435,147.04,146.93,30.0]
[1723578603336,16.2483,147.05,146.94,21.79]
[1723578603511,45.78221665,147.07,146.96,15.0993]
[1723578603717,28.5902,147.06,146.96,15.0993]
[1723578604148,21.79,147.06,146.96,15.0993]
[1723578604634,0.63670304,147.05,146.96,15.0993]
[1723578604841,0.12549,147.04,146.96,15.0993]
[1723578605150,0.25098,147.05,146.96,45.0993]
[1723578605518,57.50876008,147.05,146.96,45.0993]
[1723578605740,57.50876008,147.05,146.96,15.0993]
[1723578605932,45.0,147.05,146.96,15.0993]
[1723578606137,45.25098,147.06,146.96,15.0993]
[1723578606319,12.25651583,147.05,146.96,15.0993]
[1723578606525,45.0,147.04,146.96,45.0993]
[1723578607252,45.12549,147.05,146.96,45.0993]
[1723578607456,0.12549,147.03,146.96,45.0993]
[1723578607630,45.12549,147.03,146.96,15.0993]
[1723578608342,12.25893653,147.02,146.96,15.0993]
[1723578608632,45.0,147.01,146.96,15.0993]
[1723578608837,0.12549,147.01,146.96,15.0993]
[1723578609230,0.12549,147.02,146.96,15.0993]
[1723578609735,0.25098,147.02,146.96,15.0993]
[1723578609937,0.12549,147.02,146.96,15.0993]
[1723578611234,21.79,147.01,146.96,15.0993]
[1723578611436,45.12549,147.0,146.96,15.0993]
[1723578611735,45.0,147.0,146.96,15.0993]
[1723578611952,45.38572304,147.0,146.96,15.0993]
[1723578612129,0.12549,146.99,146.96,15.0993]
[1723578612327,0.12549,146.99,146.92,16.5869]
[1723578612554,21.91549,146.99,146.92,16.5869]
[1723578612772,0.12549,146.97,146.92,16.5869]
[1723578613058,0.12549,146.97,146.87,21.79]
[1723578613059,21.79,146.95,146.88,16.5869]
[1723578613263,45.0,146.94,146.88,16.5869]
[1723578613551,0.12549,146.96,146.88,16.5869]
[1723578613762,0.12549,146.95,146.88,16.5869]
[1723578615586,28.72159,146.93,146.88,16.5869]
[1723578615793,28.72159,146.93,146.79,40.0]
[1723578615794,0.12549,146.91,146.84,15.3468]
[1723578616078,0.12549,146.91,146.86,30.0]
[1723578616780,21.91549,146.91,146.84,15.3468]
[1723578617313,45.0,146.9,146.84,15.3468]
[1723578618074,45.38572304,146.9,146.84,15.3468]
[1723578618384,45.0,146.9,146.84,15.3468]
[1723578618587,0.12549,146.89,146.84,15.3468]
[1723578618758,0.25098,146.89,146.84,15.3468]
[1723578621600,0.12549,146.88,146.84,15.3468]
[1723578621804,45.0,146.9,146.84,15.3468]
[1723578622168,0.12549,146.92,146.84,15.3468]
[1723578623603,45.50196,146.92,146.84,15.3468]
[1723578624183,45.50196,146.92,146.85,20.0]
[1723578624692,0.38572304,146.91,146.85,20.0]
[1723578624908,0.50196,146.9,146.84,15.3468]
[1723578625073,0.38572304,146.89,146.84,15.3468]
[1723578625276,0.12549,146.89,146.84,15.3468]
[1723578625497,0.25098,146.89,146.84,15.3468]
[1723578625990,45.25098,146.9,146.84,15.3468]
[1723578626414,0.25098,146.89,146.84,15.3468]
[1723578626882,0.63670304,146.89,146.84,15.3468]
[1723578627208,0.25098,146.89,146.84,15.3468]
[1723578628298,0.12549,146.88,146.84,15.3468]
[1723578628596,0.12549,146.87,146.8,15.1529]